fUST/lending_fUST_20240927
["ID","MTS","AMOUNT","RATE_DAILY","PERIOD"]
[339244598,1727395846137,-606.26,0.0002,2]
[339244599,1727395846151,-500.0,0.0002,2]
[339244600,1727395846160,-248.409515,0.0002,2]
[339244601,1727395846169,-248.409515,0.0002,2]
[339244602,1727395846179,-500.0,0.0002,2]
[339244603,1727395846188,-289.389487,0.0002,2]
[339244604,1727395846198,-500.0,0.0002,2]
[339244605,1727395846206,-151.0,0.0002,2]
[339244606,1727395846216,-151.0,0.0002,2]
[339244607,1727395846227,-216.860988,0.0002,2]
[339244608,1727395846236,-500.0,0.0002,2]
[339244609,1727395846246,-151.0,0.0002,2]
[339244610,1727395846257,-659.45,0.0002,2]
[339244611,1727395846266,-25686.54,0.0002,2]
[339244612,1727395846275,-1049.04192041,0.00020021,2]
[339244613,1727395846285,-1000.0,0.00020021,2]
[339244614,1727395846294,-1000.0,0.00020021,2]
[339244615,1727395846303,-150.112233,0.000202,3]
[339244616,1727395846313,-151.0,0.00020233,2]
[339244617,1727395846321,-151.0,0.00020233,2]
[339244618,1727395846331,-151.0,0.00020233,2]
[339244619,1727395846340,-263.27608,0.00020233,2]
[339244620,1727395846350,-151.0,0.00020233,2]
[339244621,1727395846360,-151.0,0.00020233,2]
[339244622,1727395846369,-151.0,0.00020233,2]
[339244623,1727395846379,-151.0,0.00020233,2]
[339244624,1727395846388,-151.0,0.00020233,2]
[339244625,1727395846397,-151.0,0.00020242,2]
[339244626,1727395846406,-151.0,0.00020242,2]
[339244627,1727395846416,-151.0,0.00020242,2]
[339244628,1727395846425,-151.0,0.00020242,2]
[339244629,1727395846435,-151.0,0.00020242,2]
[339244630,1727395846444,-159.956632,0.00020242,2]
[339244631,1727395846453,-151.0,0.00020253,2]
[339244632,1727395846463,-248.409515,0.00020263,2]
[339244633,1727395846472,-248.409515,0.00020263,2]
[339244634,1727395846481,-536.22,0.00020273,2]
[339244635,1727395846490,-779.89,0.00020273,2]
[339244636,1727395846503,-1424.76,0.00020273,2]
[339244637,1727395846512,-500.0,0.00020273,2]
[339244638,1727395846521,-1654.15,0.00020273,2]
[339244639,1727395846530,-764.24,0.00020273,2]
[339244640,1727395846539,-1447.04,0.00020273,2]
[339244641,1727395846549,-517.01180581,0.00020273,2]
[339244642,1727395846558,-986.52,0.00020273,2]
[339244643,1727395846568,-597.79,0.00020273,2]
[339244644,1727395846577,-500.0,0.00020273,2]
[339244645,1727395846586,-500.0,0.00020273,2]
[339244646,1727395846596,-500.0,0.00020273,2]
[339244647,1727395846606,-500.0,0.00020273,2]
[339244648,1727395846615,-434.48154708,0.00020273,2]
[339244649,1727395846624,-1000.0,0.00020273,2]
[339244650,1727395846634,-257.21,0.00020273,2]
[339244651,1727395846643,-548.17,0.00020273,2]
[339244652,1727395846653,-500.0,0.00020273,2]
[339244653,1727395846662,-697.71,0.00020273,2]
[339244654,1727395846671,-500.0,0.00020273,2]
[339244655,1727395846681,-491.5034541,0.00020273,2]
[339244656,1727395846690,-2723.78,0.00020273,2]
[339244657,1727395846699,-2385.96,0.00020273,2]
[339244658,1727395846708,-253.08970251,0.00020273,2]
[339244659,1727395846718,-500.0,0.00020273,2]
[339244660,1727395846727,-500.0,0.00020273,2]
[339244661,1727395846736,-164.08,0.00020273,2]
[339244662,1727395846745,-500.0,0.00020273,2]
[339244663,1727395846755,-4476.93,0.00020273,2]
[339244664,1727395846764,-500.0,0.00020273,2]
[339244665,1727395846773,-500.0,0.00020273,2]
[339244666,1727395846783,-500.0,0.00020273,2]
[339244667,1727395846792,-500.0,0.00020273,2]
[339244668,1727395846801,-659.45,0.00020273,2]
[339244669,1727395846812,-25686.54,0.00020273,2]
[339244670,1727395846822,-150.112233,0.000203,5]
[339244671,1727395846831,-151.0,0.00020355,2]
[339244672,1727395846841,-271.331708,0.00020368,2]
[339244673,1727395846850,-465.57903951,0.00020385,2]
[339244674,1727395846859,-151.0,0.00020385,2]
[339244675,1727395846868,-175.06,0.000205,2]
[339244676,1727395846878,-150.112233,0.000205,5]
[339244677,1727395846887,-150.112235,0.000205,3]
[339244678,1727395846897,-151.0,0.00020507,2]
[339244679,1727395846907,-151.0,0.00020507,2]
[339244680,1727395846917,-156.60938,0.00020507,2]
[339244681,1727395846929,-271.297552,0.00020507,2]
[339244682,1727395846940,-1000.0,0.00020507,2]
[339244683,1727395846950,-1000.0,0.00020507,2]
[339244684,1727395846960,-1000.0,0.00020507,2]
[339244685,1727395846969,-1000.0,0.00020507,2]
[339244686,1727395846979,-1000.0,0.00020507,2]
[339244687,1727395846988,-1000.0,0.00020507,2]
[339244688,1727395846999,-1000.0,0.00020507,2]
[339244689,1727395847012,-1000.0,0.00020507,2]
[339244690,1727395847021,-1000.0,0.00020507,2]
[339244691,1727395847030,-1000.0,0.00020507,2]
[339244692,1727395847041,-1000.0,0.00020507,2]
[339244693,1727395847052,-1000.0,0.00020507,2]
[339244694,1727395847061,-1000.0,0.00020507,2]
[339244695,1727395847070,-423.46244992,0.00020507,2]
[339244696,1727395847211,-576.53755008,0.00020507,2]
[339244697,1727395847222,-1000.0,0.00020507,2]
[339244698,1727395847233,-810.91996999,0.00020507,2]
[339244699,1727395847290,-189.08003001,0.00020507,2]
[339244700,1727395847299,-1000.0,0.00020507,2]
[339244701,1727395847309,-1000.0,0.00020507,2]
[339244702,1727395847318,-1000.0,0.00020507,2]
[339244703,1727395847328,-350.477585,0.00020507,2]
[339244704,1727395847337,-151.0,0.00020507,2]
[339244705,1727395847346,-237.495892,0.00020507,2]
[339244706,1727395847355,-151.0,0.00020507,2]
[339244707,1727395847364,-151.0,0.00020507,2]
[339244708,1727395847474,-183.291754,0.00020507,2]
[339244709,1727395847484,-151.0,0.00020518,2]
[339244710,1727395847495,-151.0,0.00020518,2]
[339244711,1727395847508,-536.22,0.00020547,2]
[339244712,1727395847518,-779.89,0.00020547,2]
[339244713,1727395847527,-1424.76,0.00020547,2]
[339244714,1727395847536,-500.0,0.00020547,2]
[339244715,1727395847546,-1654.15,0.00020547,2]
[339244716,1727395847555,-764.24,0.00020547,2]
[339244717,1727395847565,-1447.04,0.00020547,2]
[339244718,1727395847574,-986.52,0.00020547,2]
[339244719,1727395847584,-476.89472575,0.00020547,2]
[339244720,1727395847593,-500.0,0.00020547,2]
[339244721,1727395847602,-577.3447711,0.00020547,2]
[339244722,1727395847611,-500.0,0.00020547,2]
[339244723,1727395847620,-1000.0,0.00020547,2]
[339244724,1727395847629,-257.21,0.00020547,2]
[339244725,1727395847639,-548.17,0.00020547,2]
[339244726,1727395847648,-224.43052595,0.00020547,2]
[339244727,1727395847658,-697.71,0.00020547,2]
[339244728,1727395847667,-389.08448722,0.00020547,2]
[339244729,1727395847676,-2723.78,0.00020547,2]
[339244730,1727395847685,-2385.96,0.00020547,2]
[339244731,1727395847694,-500.0,0.00020547,2]
[339244732,1727395847703,-308.96,0.00020547,2]
[339244733,1727395847712,-500.0,0.00020547,2]
[339244734,1727395847721,-4476.93,0.00020547,2]
[339244735,1727395847730,-500.0,0.00020547,2]
[339244736,1727395847739,-248.409515,0.00020547,2]
[339244737,1727395847750,-248.409515,0.00020547,2]
[339244738,1727395847759,-500.0,0.00020547,2]
[339244739,1727395847768,-500.0,0.00020547,2]
[339244740,1727395847778,-151.0,0.00020547,2]
[339244741,1727395847787,-500.0,0.00020547,2]
[339244742,1727395847797,-162.838456,0.00020547,2]
[339244743,1727395847806,-659.45,0.00020547,2]
[339244744,1727395847815,-25686.54,0.00020547,2]
[339244745,1727395847825,-203.678664,0.00020611,2]
[339244746,1727395847834,-151.0,0.00020629,2]
[339244747,1727395847843,-1217.0,0.00020638,2]
[339244748,1727395847852,-3848.0,0.00020697,2]
[339244749,1727395847861,-150.112233,0.000207,4]
[339244750,1727395847870,-150.112233,0.000207,5]
[339244751,1727395847879,-189.222046,0.00020722,2]
[339244752,1727395847889,-1500.0,0.00020722,2]
[339244753,1727395847898,-1500.0,0.00020722,2]
[339244754,1727395847907,-209.0432937,0.00020759,2]
[339244755,1727395847917,-500.0,0.00020783,2]
[339244756,1727395847926,-388.95833737,0.00020783,2]
[339244757,1727395847935,-500.0,0.00020794,2]
[339244758,1727395847944,-534.59752582,0.00020794,2]
[339244759,1727395847953,-449.38717749,0.00020794,2]
[339244760,1727395847963,-500.0,0.00020794,2]
[339244761,1727395847973,-500.0,0.00020794,2]
[339244762,1727395847982,-500.0,0.00020794,2]
[339244763,1727395847991,-500.0,0.00020794,2]
[339244764,1727395848000,-502.28114676,0.00020794,2]
[339244765,1727395848010,-500.0,0.00020794,2]
[339244766,1727395848019,-501.79940572,0.00020794,2]
[339244767,1727395848029,-502.06917059,0.00020794,2]
[339244768,1727395848038,-339.84021882,0.00020794,2]
[339244769,1727395848047,-500.0,0.00020794,2]
[339244770,1727395848056,-500.0,0.00020795,2]
[339244771,1727395848065,-500.0,0.00020795,2]
[339244772,1727395848074,-500.0,0.00020796,2]
[339244773,1727395848083,-536.22,0.00020821,2]
[339244774,1727395848093,-779.89,0.00020821,2]
[339244775,1727395848102,-1424.76,0.00020821,2]
[339244776,1727395848111,-500.0,0.00020821,2]
[339244777,1727395848121,-1654.15,0.00020821,2]
[339244778,1727395848130,-764.24,0.00020821,2]
[339244779,1727395848139,-1447.04,0.00020821,2]
[339244780,1727395848150,-986.52,0.00020821,2]
[339244781,1727395848160,-500.0,0.00020821,2]
[339244782,1727395848169,-373.05604989,0.00020821,2]
[339244783,1727395848178,-1000.0,0.00020821,2]
[339244784,1727395848188,-257.21,0.00020821,2]
[339244785,1727395848198,-548.17,0.00020821,2]
[339244786,1727395848207,-697.71,0.00020821,2]
[339244787,1727395848216,-2723.78,0.00020821,2]
[339244788,1727395848228,-2385.96,0.00020821,2]
[339244789,1727395848238,-500.0,0.00020821,2]
[339244790,1727395848247,-151.0,0.00020821,2]
[339244791,1727395848257,-151.0,0.00020821,2]
[339244792,1727395848266,-500.0,0.00020821,2]
[339244793,1727395848275,-151.0,0.00020821,2]
[339244794,1727395848285,-151.0,0.00020821,2]
[339244795,1727395848294,-151.0,0.00020821,2]
[339244796,1727395848303,-4476.93,0.00020821,2]
[339244797,1727395848313,-500.0,0.00020821,2]
[339244798,1727395848323,-248.409515,0.00020821,2]
[339244799,1727395848332,-248.409515,0.00020821,2]
[339244800,1727395848341,-615.05320917,0.00020821,2]
[339244801,1727395848350,-500.0,0.00020821,2]
[339244802,1727395848360,-318.78,0.00020821,2]
[339244803,1727395848369,-659.45,0.00020821,2]
[339244804,1727395848378,-25686.54,0.00020821,2]
[339244805,1727395848387,-500.0,0.0002086,2]
[339244806,1727395848396,-315.32222032,0.0002086,2]
[339244807,1727395848405,-152.68017911,0.00020899,2]
[339244808,1727395848415,-150.112233,0.000209,5]
[339244809,1727395848423,-150.112233,0.000209,3]
[339244810,1727395848433,-150.112233,0.000209,3]
[339244811,1727395848442,-151.0,0.00020903,2]
[339244812,1727395848452,-500.0,0.00020904,2]
[339244813,1727395848461,-151.0,0.00020938,2]
[339244814,1727395848470,-500.0,0.00021,30]
[339244815,1727395848480,-500.0,0.00021,30]
[339244816,1727395848489,-711.85023632,0.00021,30]
[339244817,1727395848498,-500.0,0.00021,30]
[339244818,1727395848510,-607.21200268,0.00021,30]
[339244819,1727395848520,-500.0,0.00021,30]
[339244820,1727395848531,-700.0,0.00021,30]
[339244821,1727395848541,-200.0,0.00021,2]
[339244822,1727395848551,-150.112233,0.00021,3]
[339244823,1727395848560,-3000.0,0.00021,2]
[339244824,1727395848570,-500.0,0.00021,30]
[339244825,1727395848579,-500.0,0.00021,30]
[339244826,1727395848590,-500.0,0.00021,30]
[339244827,1727395848599,-500.0,0.00021,30]
[339244828,1727395848609,-276.82944441,0.00021,30]
[339244829,1727395848619,-500.0,0.00021,30]
[339244830,1727395848628,-500.0,0.00021,30]
[339244831,1727395848637,-500.0,0.00021,30]
[339244832,1727395848646,-508.1342584,0.00021,30]
[339244833,1727395848655,-500.0,0.00021,30]
[339244834,1727395848665,-539.59614278,0.00021,30]
[339244835,1727395848674,-500.0,0.00021,30]
[339244836,1727395848683,-939.74150048,0.00021,30]
[339244837,1727395848693,-500.0,0.00021,30]
[339244838,1727395848702,-500.0,0.00021,30]
[339244839,1727395848711,-154.74467229,0.00021,30]
[339244840,1727395848721,-3000.0,0.0002101,2]
[339244841,1727395848730,-3000.0,0.0002102,2]
[339244842,1727395848739,-1500.0,0.00021022,2]
[339244843,1727395848749,-1500.0,0.00021022,2]
[339244844,1727395848760,-3000.0,0.0002103,2]
[339244845,1727395848769,-3000.0,0.0002104,2]
[339244846,1727395848779,-3000.0,0.0002105,2]
[339244847,1727395848788,-3000.0,0.0002106,2]
[339244848,1727395848798,-505.83924349,0.00021068,2]
[339244849,1727395848807,-500.0,0.00021068,2]
[339244850,1727395848817,-500.0,0.00021068,2]
[339244851,1727395848827,-3000.0,0.0002107,2]
[339244852,1727395848837,-420.0,0.00021072,2]
[339244853,1727395848846,-3000.0,0.0002108,2]
[339244854,1727395848857,-3000.0,0.0002109,2]
[339244855,1727395848867,-536.22,0.00021095,2]
[339244856,1727395848877,-779.89,0.00021095,2]
[339244857,1727395848886,-1424.76,0.00021095,2]
[339244858,1727395848896,-208.28756696,0.00021095,2]
[339244859,1727395848905,-1654.15,0.00021095,2]
[339244860,1727395848915,-764.24,0.00021095,2]
[339244861,1727395848924,-1447.04,0.00021095,2]
[339244862,1727395848933,-986.52,0.00021095,2]
[339244863,1727395848943,-500.0,0.00021095,2]
[339244864,1727395848952,-1000.0,0.00021095,2]
[339244865,1727395848961,-257.21,0.00021095,2]
[339244866,1727395848971,-548.17,0.00021095,2]
[339244867,1727395848981,-697.71,0.00021095,2]
[339244868,1727395848990,-2723.78,0.00021095,2]
[339244869,1727395848999,-2385.96,0.00021095,2]
[339244870,1727395849010,-500.0,0.00021095,2]
[339244871,1727395849019,-151.0,0.00021095,2]
[339244872,1727395849030,-151.0,0.00021095,2]
[339244873,1727395849039,-500.0,0.00021095,2]
[339244874,1727395849049,-151.0,0.00021095,2]
[339244875,1727395849058,-215.984434,0.00021095,2]
[339244876,1727395849068,-4476.93,0.00021095,2]
[339244877,1727395849078,-500.0,0.00021095,2]
[339244878,1727395849088,-619.36062787,0.00021095,2]
[339244879,1727395849097,-659.45,0.00021095,2]
[339244880,1727395849107,-12076.33053165,0.00021095,2]
[339244881,1727395849121,-361.55523675,0.00021095,2]
[339244882,1727395849213,-500.0,0.00019178,2]
[339244883,1727395849224,-2501.23414296,0.00021095,2]
[339244884,1727395849579,-500.0,0.00019178,2]
[339244885,1727395849589,-233.32944302,0.00021095,2]
[339244886,1727395849819,-24.33474777,0.00021095,2]
[339244887,1727395850069,166.666666,0.00018339,2]
[339244893,1727396507652,184.94,0.00010959,2]
[339244894,1727396529344,369.88,0.00010959,2]
[339244896,1727396581762,277.41,0.00010959,2]
[339244897,1727396592753,231.17,0.00010959,2]
[339244898,1727396603565,192.64,0.00010959,2]
[339244899,1727396614575,160.54,0.00010959,2]
[339244900,1727396625396,802.7,0.00010959,2]
[339244901,1727396700609,192.625952,0.0001396,2]
[339244904,1727396739140,-272.77973228,0.00014873,2]
[339244905,1727396739162,-272.77973228,0.00014881,2]
[339244906,1727396739183,-272.77973228,0.00014889,2]
[339244907,1727396739205,-257.97207789,0.0001489,2]
[339244908,1727396739227,-1604.58072382,0.0001489,2]
[339244910,1727396755104,-2078.41535908,0.0001489,2]
[339244911,1727396755126,-300.0,0.00014972,2]
[339244912,1727396755148,-300.0,0.00014972,2]
[339244913,1727396755170,-275.43860834,0.00014973,2]
[339244914,1727396830124,-300.0,0.00014972,2]
[339244915,1727396830145,-300.0,0.00014972,2]
[339244916,1727396830166,-224.56139166,0.00014973,2]
[339244917,1727396830186,-500.0,0.00014973,2]
[339244918,1727396830206,-500.0,0.00014973,2]
[339244919,1727396830226,-500.0,0.00014973,2]
[339244920,1727396830247,-500.0,0.00014973,2]
[339244921,1727396830266,-500.78881432,0.00014973,2]
[339244922,1727396830292,-155.84023659,0.00014973,2]
[339244923,1727396836096,-344.15976341,0.00014973,2]
[339244924,1727396836117,-500.0,0.00014988,2]
[339244925,1727396836139,-771.34667211,0.00014988,2]
[339244926,1727396836161,-10.49581233,0.00014988,2]
[339244927,1727396843097,-296.42905534,0.00014988,2]
[339244928,1727396850107,-2087.52507309,0.00014888,2]
[339244931,1727396880661,3000.0,0.00013992,2]
[339244932,1727396880863,165.433992,0.00014097,2]
[339244933,1727396881913,-165.433992,0.00014158,2]
[339244934,1727396882610,-165.433992,0.00014219,2]
[339244935,1727396883615,-165.433992,0.0001428,2]
[339244936,1727396886570,-165.433992,0.00014342,2]
[339244937,1727396886991,-165.433992,0.00014403,2]
[339244938,1727396887616,-165.433992,0.00014464,2]
[339244945,1727396946169,-165.433992,0.00014525,2]
[339244946,1727396946192,-165.433992,0.00014586,2]
[339244947,1727396946215,-165.433992,0.00014648,2]
[339244948,1727396946237,-165.433992,0.00014709,2]
[339244949,1727396946259,-165.433992,0.0001477,2]
[339244950,1727396946282,-165.433992,0.00014831,2]
[339244951,1727396946304,-1135.09649943,0.00014888,2]
[339244952,1727396946325,-500.0,0.00014973,2]
[339244953,1727396946347,-300.0,0.00014978,2]
[339244954,1727396946369,-300.0,0.00014978,2]
[339244955,1727396946393,-858.25454578,0.00014979,2]
[339244956,1727396946415,-500.0,0.00014979,2]
[339244957,1727396946437,-443.37284321,0.00014979,2]
[339244958,1727396946460,-858.25454578,0.00014979,2]
[339244959,1727396946486,-500.0,0.00014979,2]
[339244960,1727396946511,-858.25454578,0.00014979,2]
[339244961,1727396946536,-419.04740451,0.00014979,2]
[339244962,1727396946561,-858.25454578,0.00014979,2]
[339244963,1727396946583,-858.25454578,0.00014979,2]
[339244964,1727396946604,-858.25454578,0.00014979,2]
[339244965,1727396946627,-858.25454578,0.00014979,2]
[339244966,1727396946649,-858.25454578,0.00014979,2]
[339244967,1727396946671,-858.25454578,0.00014979,2]
[339244968,1727396946698,-858.25454578,0.00014979,2]
[339244969,1727396946723,-858.25454578,0.00014979,2]
[339244970,1727396946749,-858.25454578,0.00014979,2]
[339244971,1727396946774,-858.25454578,0.00014979,2]
[339244972,1727396946797,-858.25454578,0.00014979,2]
[339244973,1727396946819,-858.25454578,0.00014979,2]
[339244974,1727396946843,-858.25454578,0.00014979,2]
[339244975,1727396946866,-858.25454578,0.00014979,2]
[339244976,1727396946889,-858.25454578,0.00014979,2]
[339244977,1727396946920,-858.25454578,0.00014979,2]
[339244978,1727396946950,-858.25454578,0.00014979,2]
[339244979,1727396946977,-858.25454578,0.00014979,2]
[339244980,1727396947004,-858.25454578,0.00014979,2]
[339244981,1727396947032,-858.25454578,0.00014979,2]
[339244982,1727396947062,-858.25454578,0.00014979,2]
[339244983,1727396947087,-858.25454578,0.00014979,2]
[339244984,1727396947114,-858.25454578,0.00014979,2]
[339244985,1727396947143,-858.25454578,0.00014979,2]
[339244986,1727396947171,-858.25454578,0.00014979,2]
[339244987,1727396947198,-858.25454578,0.00014979,2]
[339244988,1727396947224,-858.25454578,0.00014979,2]
[339244989,1727396947251,-858.25454578,0.00014979,2]
[339244990,1727396947278,-858.25454578,0.00014979,2]
[339244991,1727396947305,-858.25454578,0.00014979,2]
[339244992,1727396947329,-858.25454578,0.00014979,2]
[339244993,1727396947354,-858.25454578,0.00014979,2]
[339244994,1727396947391,-858.25454578,0.00014979,2]
[339244995,1727396947426,-858.25454578,0.00014979,2]
[339244996,1727396947458,-858.25454578,0.00014979,2]
[339244997,1727396947494,-858.25454578,0.00014979,2]
[339244998,1727396947527,-858.25454578,0.00014979,2]
[339244999,1727396947561,-858.25454578,0.00014979,2]
[339245000,1727396947586,-858.25454578,0.00014979,2]
[339245001,1727396947612,-858.25454578,0.00014979,2]
[339245002,1727396947638,-858.25454578,0.00014979,2]
[339245003,1727396947668,-858.25454578,0.00014979,2]
[339245004,1727396947696,-858.25454578,0.00014979,2]
[339245005,1727396947721,-858.25454578,0.00014979,2]
[339245006,1727396947749,-858.25454578,0.00014979,2]
[339245007,1727396947779,-858.25454578,0.00014979,2]
[339245008,1727396947805,-858.25454578,0.00014979,2]
[339245009,1727396947830,-858.25454578,0.00014979,2]
[339245010,1727396947855,-858.25454578,0.00014979,2]
[339245011,1727396947881,-858.25454578,0.00014979,2]
[339245012,1727396947908,-858.25454578,0.00014979,2]
[339245013,1727396947939,-858.25454578,0.00014979,2]
[339245014,1727396947966,-858.25454578,0.00014979,2]
[339245015,1727396947992,-858.25454578,0.00014979,2]
[339245016,1727396948017,-858.25454578,0.00014979,2]
[339245017,1727396948046,-1094.30268298,0.00014979,2]
[339245018,1727396948074,-1094.30268298,0.00014979,2]
[339245019,1727396948102,-1094.30268298,0.00014979,2]
[339245020,1727396948129,-1094.30268298,0.00014979,2]
[339245021,1727396948156,-1094.30268298,0.00014979,2]
[339245022,1727396948184,-1094.30268298,0.00014979,2]
[339245023,1727396948209,-1094.30268298,0.00014979,2]
[339245024,1727396948237,-1094.30268298,0.00014979,2]
[339245025,1727396948264,-1094.30268298,0.00014979,2]
[339245026,1727396948289,-1094.30268298,0.00014979,2]
[339245027,1727396948314,-1094.30268298,0.00014979,2]
[339245028,1727396948340,-1094.30268298,0.00014979,2]
[339245029,1727396948366,-1094.30268298,0.00014979,2]
[339245030,1727396948392,-1094.30268298,0.00014979,2]
[339245031,1727396948420,-1094.30268298,0.00014979,2]
[339245032,1727396948445,-1094.30268298,0.00014979,2]
[339245033,1727396948474,-1094.30268298,0.00014979,2]
[339245034,1727396948499,-1094.30268298,0.00014979,2]
[339245035,1727396948524,-1094.30268298,0.00014979,2]
[339245036,1727396948557,-1094.30268298,0.00014979,2]
[339245037,1727396948584,-1094.30268298,0.00014979,2]
[339245038,1727396948610,-1094.30268298,0.00014979,2]
[339245039,1727396948637,-1094.30268298,0.00014979,2]
[339245040,1727396948662,-1094.30268298,0.00014979,2]
[339245041,1727396948689,-1094.30268298,0.00014979,2]
[339245042,1727396948889,-1094.30268298,0.00014979,2]
[339245043,1727396948916,-1094.30268298,0.00014979,2]
[339245044,1727396948938,-1094.30268298,0.00014979,2]
[339245045,1727396948960,-1094.30268298,0.00014979,2]
[339245046,1727396948982,-1094.30268298,0.00014979,2]
[339245047,1727396949003,-63805.4847105,0.0001498,2]
[339245048,1727396949024,-1653.76125738,0.0001498,2]
[339245049,1727396949044,-635.42808586,0.00014987,2]
[339245050,1727396949065,-500.0,0.00014987,2]
[339245051,1727396949085,-500.0,0.00014987,2]
[339245052,1727396949105,-500.0,0.00014987,2]
[339245053,1727396949124,-582.93528335,0.00014987,2]
[339245054,1727396949145,-500.0,0.00014987,2]
[339245055,1727396949165,-500.0,0.00014987,2]
[339245056,1727396949186,-572.79537112,0.00014987,2]
[339245057,1727396949206,-500.0,0.00014987,2]
[339245058,1727396949226,-500.0,0.00014987,2]
[339245059,1727396949247,-500.0,0.00014987,2]
[339245060,1727396949269,-19857.991048,0.0001499,2]
[339245061,1727396949398,-107752.978373,0.0001499,2]
[339245062,1727396949419,-3307.52251476,0.0001499,2]
[339245063,1727396949439,-86928.2261345,0.00015,2]
[339245064,1727396949458,-192.625952,0.0001533,2]
[339245065,1727396949482,-500.0,0.00015521,2]
[339245066,1727396949502,-500.0,0.00015521,2]
[339245067,1727396949524,-501.2880644,0.00015521,2]
[339245068,1727396949546,-1000.0,0.00015521,2]
[339245069,1727396949566,-1000.0,0.00015521,2]
[339245070,1727396949587,-420.0,0.00016393,2]
[339245071,1727396949607,-420.0,0.00016476,2]
[339245072,1727396949628,-1500.0,0.00016522,2]
[339245073,1727396949649,-1500.0,0.00016522,2]
[339245074,1727396949668,-166.666666,0.00017425,2]
[339245075,1727396949689,-63805.4847105,0.00017708,2]
[339245076,1727396949710,-1653.76125738,0.00017708,2]
[339245077,1727396949731,-24627.7505578,0.00017728,2]
[339245078,1727396949752,-500.0,0.00017773,2]
[339245079,1727396949773,-502.07507827,0.00017773,2]
[339245080,1727396949793,-507.45875307,0.00017773,2]
[339245081,1727396949817,-500.0,0.00017773,2]
[339245082,1727396949840,-500.0,0.00017773,2]
[339245083,1727396949864,-46113.03654997,0.0001781,2]
[339245087,1727396955101,-6392.13986722,0.0001781,2]
[339245088,1727396959210,-11300.30829331,0.0001781,2]
[339245089,1727396959232,-1653.76125738,0.0001781,2]
[339245090,1727396959253,-2000.0,0.0001782,2]
[339245091,1727396959274,-2000.0,0.0001782,2]
[339245092,1727396959296,-587.0,0.00017942,2]
[339245093,1727396959317,-500.0,0.00018058,2]
[339245094,1727396959338,-158.72690404,0.00018058,2]
[339245095,1727396959360,-587.0,0.00018124,2]
[339245096,1727396959382,-230.30775058,0.00018163,2]
[339245097,1727396964155,-500.0,0.00017773,2]
[339245098,1727396964177,-269.69224942,0.00018163,2]
[339245099,1727396964199,-1000.0,0.00018321,2]
[339245100,1727396964220,-532.35651241,0.00018321,2]
[339245105,1727396996778,500.0,0.00014973,2]
[339245106,1727396996832,849.8625971,0.00015521,2]
[339245107,1727396996853,150.1374029,0.00015521,2]
[339245108,1727396996878,1500.0,0.00016522,2]
[339245172,1727397038163,-500.0,0.00017773,2]
[339245174,1727397038174,-2000.0,0.0001782,2]
[339245176,1727397038183,-166.666666,0.00017848,2]
[339245177,1727397038193,-300.0,0.0001805,2]
[339245179,1727397038208,-157.67193384,0.0001805,2]
[339245181,1727397038218,-500.0,0.0001805,2]
[339245183,1727397038228,-500.0,0.0001805,2]
[339245185,1727397038237,-500.0,0.0001805,2]
[339245187,1727397038246,-500.0,0.0001805,2]
[339245189,1727397038256,-500.0,0.0001805,2]
[339245191,1727397038265,-500.0,0.0001805,2]
[339245193,1727397038275,-500.0,0.0001805,2]
[339245195,1727397038284,-500.0,0.0001805,2]